Cogmind - Beta 10.1 @@@ ROGUE MODE // 2020.10.27 @ 19:09:16 Player: Atherys Result: Self-destructed Performance ------------- Evolutions (1) 500 Regions Visited (2) 400 Robots Destroyed (9) 45 Value Destroyed (275) 275 Prototype IDs (3) 60 Alien Tech Used (0) 0 Bonus (0) 0 TOTAL SCORE: 1280 Bonus ------- None Cogmind --------- Core Integrity 325/400 Matter 300/300 Energy 2/100 System Corruption 0% Temperature Cool (-100) Movement Walking (150) Ox1 Location -9/Materials Parts ------- > --- POWER (1) -------- (None) > --- PROPULSION (3) --- Aluminum Leg Aluminum Leg > --- UTILITY (3) ------ Cryofiber Web Large Storage Unit Advanced Terrain Scanner > --- WEAPON (2) ------- Heavy Particle Cannon Heavy Particle Cannon > --- INVENTORY (10) --- Ion Engine Medium Storage Unit Large Storage Unit High-capacity Battery (400) Structural Scanner Improved Terrain Scanner Targeting Computer EM Pulse Gun Beam Cannon Mining Laser Peak State ------------ > --- POWER ------------ Light Nuclear Core > --- PROPULSION ------- Aluminum Leg Aluminum Leg Aluminum Leg > --- UTILITY ---------- Cryofiber Web Large Storage Unit Advanced Terrain Scanner > --- WEAPON ----------- Heavy Particle Cannon Heavy Particle Cannon > --- INVENTORY -------- Ion Engine Medium Storage Unit Large Storage Unit High-capacity Battery Structural Scanner Improved Terrain Scanner Targeting Computer EM Pulse Gun Beam Cannon Mining Laser [Rating: 20] Favorites ----------- Power Ion Engine Engine Ion Engine Power Core Light Nuclear Core Propulsion Aluminum Leg Leg Aluminum Leg Utility Small Storage Unit Device Cryofiber Web Storage Small Storage Unit Weapon Medium Laser Energy Gun Medium Laser Energy Cannon Heavy Particle Cannon Build | -11 -10 -9 ------- Run | Scr Mat Mat Slots Evolved 2 | . . 2 Power . | . . . Propulsion 1 | . . 1 Utility 1 | . . 1 Weapon . | . . . Parts Attached 23 | 8 2 13 Power 4 | 1 . 3 Engine 3 | 1 . 2 Core 1 | . . 1 Reactor . | . . . Propulsion 3 | 2 . 1 Treads . | . . . Leg 3 | 2 . 1 Wheel . | . . . Hover . | . . . Flight . | . . . Utility 8 | 3 . 5 Device 3 | 1 . 2 Storage 5 | 2 . 3 Processor . | . . . Hackware . | . . . Protection . | . . . Artifact . | . . . Weapon 8 | 2 2 4 Energy Gun 5 | 2 2 1 Energy Cannon 3 | . . 3 Ballistic Gun . | . . . Ballistic Cannon . | . . . Launcher . | . . . Special Weapon . | . . . Impact Weapon . | . . . Slashing Weapon . | . . . Piercing Weapon . | . . . Special Melee Weapon . | . . . Unidentified Prototypes . | . . . Parts Lost 5 | . 2 3 Power 2 | . 1 1 Propulsion . | . . . Utility . | . . . Weapon 3 | . 1 2 Highest Loss Streak 2 | . 2 2 Average Slot Usage (%) 93 | . 98 87 Engine 8 | . 12 2 Core 1 | . . 3 Leg 27 | . 28 27 Device 4 | . . 10 Storage 25 | . 28 22 Energy Gun 17 | . 28 6 Energy Cannon 6 | . . 13 Naked Turns . | . . . Heaviest Build 52 | 17 17 52 Greatest Support 30 | 20 20 30 Greatest Overweight (x) 2 | . . 2 Average Overweight (x) . | . . 1 Largest Inventory Capacity 20 | 8 8 20 Average Capacity 10 | 6 8 14 Most Carried 12 | 2 7 12 Average Carried 5 | . 5 8 Final Capacity 10 | 8 8 10 Final Carried 10 | 2 6 10 Class Distribution -------------------- 83% | Mutant 16% | Hauler-Mutant Dominant Class ---------------- Mutant | -10/Materials Mutant | -9/Materials Resources | -11 -10 -9 ----------- Run | Scr Mat Mat Matter Collected 405 | 280 10 115 Remotely . | . . . Salvage Created 420 | 99 123 198 Parts 21 | 6 5 10 Haulers Intercepted . | . . . Recyclers Shooed 1 | 1 . . Parts Field Recycled . | . . . Retrieved Matter . | . . . Parts Self-Destructed . | . . . Prevented . | . . . Kills | -11 -10 -9 ------- Run | Scr Mat Mat Combat Hostiles Destroyed 7 | . 3 4 Guns 3 | . 2 1 Cannons 3 | . . 3 AOE 1 | . 1 . Classes Destroyed 4 | 2 1 1 Tunneler 1 | 1 . . Recycler 1 | 1 . . Grunt 6 | . 3 3 Sentry 1 | . . 1 Best Kill Streak 3 | 1 3 3 Combat Bots Only 3 | . 3 3 Max Kills in Single Turn 1 | 1 1 1 Gunslinging . | . . . Exploded 1 | . 1 . Melee . | . . . Uniques/NPCs Destroyed . | . . . Combat | -11 -10 -9 -------- Run | Scr Mat Mat Damage Taken 647 | . 199 448 Core 75 | . . 75 Absorbed by Shields . | . . . Core Remaining (%) 100 | 100 100 . Volleys Fired 39 | 10 13 16 Largest 2 | 2 2 2 Hottest 150 | 90 100 150 Shots Fired 61 | 20 20 21 Gun 46 | 20 20 6 Cannon 15 | . . 15 Launcher . | . . . Special . | . . . Kinetic . | . . . Thermal 48 | 10 17 21 Explosive . | . . . Electromagnetic 13 | 10 3 . Robot Hit Streak 19 | 5 12 19 Robot Miss Streak 5 | 5 1 2 Penetration Max . | . . . Secondary Targets . | . . . Shots Hit Robots 43 | 12 18 13 Core Hits 16 | 3 6 7 Critical Hits . | . . . Critical Kills . | . . . Critical Parts Destroyed . | . . . Melee Attacks . | . . . Impact . | . . . Slashing . | . . . Piercing . | . . . Sneak Attacks . | . . . Combat Hostiles . | . . . Follow-up Attacks . | . . . Damage Inflicted 753 | 153 279 321 Guns 451 | 153 227 71 Cannons 250 | . . 250 Explosions 52 | . 52 . Melee . | . . . Ramming . | . . . Kinetic . | . . . Thermal 647 | 89 237 321 Explosive . | . . . Electromagnetic 106 | 64 42 . Impact . | . . . Slashing . | . . . Piercing . | . . . Highest Corruption . | . . . Average Corruption . | . . . Corruption Purged . | . . . Overload Shots . | . . . Overflow Damage 17 | . 12 5 Projectiles 5 | . . 5 Explosions 12 | . 12 . Melee . | . . . Knockbacks . | . . . Impact . | . . . Kinetic . | . . . Secondary . | . . . Self-Inflicted Damage 39 | . 39 . Shots 1 | . 1 . Rammed . | . . . Targets Rammed . | . . . Kicked . | . . . Crushed . | . . . Highest Temperature 329 | 156 329 158 Average Temperature 106 | 72 182 60 Received Heat Transfer 300 | . 84 216 Effects 3 | . 3 . Shutdowns 1 | . 1 . Interference 2 | . 2 . Siege Activations . | . . . Robots Corrupted . | . . . Combat Hostiles . | . . . Parts Fried . | . . . Impact Corruptions . | . . . Robots Melted . | . . . Combat Hostiles . | . . . Parts Melted 4 | . 2 2 Heat Transferred 1384 | 259 605 520 Parts Sabotaged . | . . . Parts Stolen . | . . . Parts Stripped . | . . . Power Chain Reactions 1 | . 1 . Missiles Intercepted . | . . . Alert | -11 -10 -9 ------- Run | Scr Mat Mat Peak Influence 131 | 10 96 131 Initial 40 | . 6 40 Average 50 | 5 34 81 Maximum Alert Level . | . . . Low Security (%) 100 | 100 100 100 Level 1 . | . . . Level 2 . | . . . Level 3 . | . . . Level 4 . | . . . Level 5 . | . . . High Security . | . . . Max Security . | . . . Squads Dispatched 1 | . 1 . Investigation 1 | . 1 . Extermination . | . . . Reinforcement . | . . . Assault . | . . . Garrison . | . . . Intercept . | . . . Construction Impeded . | . . . Haulers Reinforced . | . . . Stealth | -11 -10 -9 --------- Run | Scr Mat Mat Distress Signals . | . . . Communications Jammed . | . . . Distress Signals . | . . . Times Spotted 9 | . 4 5 Peak Tracking Total 3 | . 2 3 Tactical Retreats 1 | . . 1 Traps | -11 -10 -9 ------- Run | Scr Mat Mat Traps Triggered 2 | . . 2 Indirectly . | . . . Trap Hack Attempts . | . . . Triggered . | . . . Disarmed . | . . . Reprogrammed . | . . . Reused . | . . . Traps Extracted . | . . . Installed . | . . . Triggered . | . . . Machines | -11 -10 -9 ---------- Run | Scr Mat Mat Machines Disabled . | . . . Max in Single Turn . | . . . Machines Sabotaged . | . . . Garrisons Compromised . | . . . Overloaded Fab Kills . | . . . Fab Network Shutdowns . | . . . Hacking | -11 -10 -9 --------- Run | Scr Mat Mat Machines Accessed 6 | . 5 1 Terminals 6 | . 5 1 Fabricators . | . . . Repair Stations . | . . . Recycling Units . | . . . Scanalyzers . | . . . Garrison Access . | . . . Total Hacks 21 | . 18 3 Successful 14 | . 12 2 Failed 7 | . 6 1 Catastrophic . | . . . Database Lockouts . | . . . Manual 8 | . 5 3 Terminals 21 | . 18 3 Fabricators . | . . . Repair Stations . | . . . Recycling Units . | . . . Scanalyzers . | . . . Garrison Access . | . . . Terminal Hacks 8 | . 8 . Record 1 | . 1 . Prototype ID Bank 2 | . 2 . Dispatch Records 1 | . 1 . Maintenance Status 1 | . 1 . Patrol Status 1 | . 1 . Transport Status 1 | . 1 . Hauler Manifests 1 | . 1 . Fabricator Hacks . | . . . Repair Station Hacks . | . . . Recycling Unit Hacks . | . . . Scanalyzer . | . . . Garrison Access Hacks . | . . . Unauthorized Hacks 6 | . 4 2 Terminals 6 | . 4 2 Track 3 | . 2 1 Operators 3 | . 2 1 Fabricators . | . . . Repair Stations . | . . . Recycling Units . | . . . Scanalyzers . | . . . Garrison Access . | . . . Data Cores Recovered . | . . . Used . | . . . Hacking Detections 5 | . 5 . Full Trace Events 1 | . 1 . Feedback Events . | . . . Feedback Blocked . | . . . Robot Schematics Acquired . | . . . Robots Built . | . . . Matter . | . . . Time . | . . . Total Robot Build Rating . | . . . Part Schematics Acquired . | . . . Parts Built . | . . . Matter . | . . . Time . | . . . Total Part Build Rating . | . . . Parts Repaired . | . . . Time . | . . . Parts Recycled . | . . . Recycled Matter . | . . . Retrieved Matter . | . . . Retrieved Components . | . . . Parts Scanalyzed . | . . . Part Schematics Acquired . | . . . Parts Damaged . | . . . Bothacking | -11 -10 -9 ------------ Run | Scr Mat Mat Used RIF Installer . | . . . Robots Hacked . | . . . Non-combat . | . . . Combat . | . . . Robot Hacks Applied . | . . . Relay Couplers Released . | . . . Robots Rewired . | . . . Allies Hacked . | . . . Hacks Repelled . | . . . Allies | -11 -10 -9 -------- Run | Scr Mat Mat Total Allies . | . . . Largest Group . | . . . Highest-Rated Group . | . . . Highest-Rated Ally . | . . . Total Orders . | . . . Ally Attacks . | . . . Total Damage . | . . . Kills . | . . . Allies Corrupted . | . . . Allies Melted . | . . . Intel | -11 -10 -9 ------- Run | Scr Mat Mat Robot Analysis Total . | . . . Derelict Logs Recovered . | . . . Drone Launches . | . . . Drone Recoveries . | . . . Exploration | -11 -10 -9 ------------- Run | Scr Mat Mat Turns Passed 836 | 111 379 346 Spaces Moved 512 | 59 283 170 Core 8 | 8 . . Treads . | . . . Legs 504 | 51 283 170 Wheels . | . . . Hover . | . . . Flight . | . . . Fastest Speed 50 | 50 120 120 Average Speed 131 | 110 120 156 Slowest Speed 180 | 120 120 180 Overloaded Moves . | . . . Propulsion Burnouts . | . . . Robots Hopped . | . . . Cave-ins Triggered . | . . . Exploration Rate (%) 21 | 4 43 16 Regions Visited 2 Branch Regions . Pre-discovered Areas . | . . . Known Exits Taken . | . . . Unknown Exits Taken 2 | 1 1 . Scrap Searched . | . . . Spaces Dug . | . . . Terrain Destroyed 7 | . 3 4 Melee . | . . . Projectile 4 | . . 4 AOE 3 | . 3 . Terrain Rammed . | . . . Walls Destroyed . | . . . Machines Disabled . | . . . Actions | -11 -10 -9 --------- Run | Scr Mat Mat Total 608 | 82 302 224 Wait 17 | 2 . 15 Move 510 | 58 282 170 Hop . | . . . Pick Up 16 | 4 5 7 Fast Attach 9 | 5 . 4 Attach 5 | 2 1 2 Detach . | . . . Swap 9 | 1 1 7 Drop 3 | . . 3 Fire 39 | 10 13 16 Melee . | . . . Ram . | . . . Kick . | . . . Crush . | . . . Escape Stasis . | . . . Rewire . | . . . Trap . | . . . Miscellaneous . | . . . Route ------- -11/Scrapyard -10/Materials (discovered 2 exits: *Mat / [*Min]) -9/Materials (discovered 1 exit: [*Min]) History --------- Turn | Location | Event 6 | -11/Scrapyard | Discovered new exit (range 15) 112 | -11/Scrapyard | Entered Materials 268 | -10/Materials | Discovered new exit (range 6) 309 | -10/Materials | Build established: Mutant 472 | -10/Materials | Discovered new exit (range 6) 491 | -10/Materials | Entered another Materials area 491 | -9/Materials | Evolved 2 slots: Propulsion x1, Utility x1 695 | -9/Materials | Discovered new exit (range 6) 837 | -9/Materials | Self-destructed Last Messages --------------- Trojan loaded successfully. Testing... Tracking enabled and active. 00782_ Lgt. Nuclear Core destroyed. 00782_ Imp. Ion Engine melted. 00782_ Y-45 Defender destroyed. 00787_ Acquired 26 matter. 00793_ K-01 Serf collects debris. 00807_ U-05 Engineer builds a Wall. 00808_ K-01 Serf collects debris. 00812_ U-05 Engineer builds a Wall. 00812_ K-01 Serf collects debris. 00817_ Triggered Blade Trap. 00817_ Massive razor-sharp blades shoot up from within the floor. 00817_ Ion Engine severed. 00828_ Triggered Blade Trap. 00828_ Massive razor-sharp blades shoot up from within the floor. 00828_ Aluminum Leg severed. 00832_ U-05 Engineer lays Concrete. 00834_ Acquired Ion Engine. Map ----- +----------------------------------------------------+ | ?????????????????????????????????????????????????? | | ?????????????????????????????????????????????????? | | ?????????????????????????????????????#?#?????"???# | | ?????????????????????????????????????????????????# | | ??????????????????????????????????????????? ?????+ | | ????????????????????????????????????????? ???????# | | ????????????????????????????????????? ????? ?????# | | ???????????????????????????????????"?????????"???# | | ?????????????????????????#???????????????????? ??# | | ?????????????????????????????????????#?????????#?# | | ????????????????????????????#??????#?????????????# | | ?????????????"?????#????????????#?????"?????? ???# | | ?????????????????????????????????????????????????# | | ???????????????????????????#???#??? ????? ???????# | | ????????????????????????????????????????????????## | | ??????????? ????????????????#???????? ?? ? ? ??### | | ?????????????????????????#? ????????????? ????## | | ?????????????????????????????????????##+######## | | ?????????????????????????????????? ??# + | | ?????????? ??????? ????????????????Y## ####### | | ????????????#???? ???????????"???????# ##????# | | ???????????????? ??????????????????#?# #???#?# | | ????????????????????????????????????## ##??#?### | | ??????????????????????????? ???? ???# ######?? | | ?????????#????# ################### ### | | ??????????????# @ u = | | ??????????????# #######/########### %[ ### | | ??????????#??#?????????# ##????# ##+"+### | | ???????????????????????# !#????######## # | | ?????????????????????"?# """ #??#????????# T # | | ?????????????????? ????# """ #???????????# # | | ?????????????????? ????# """ #??????##???# # | | ???????????????????????# #??????????## # | | ???????????????????????########?????????#?# # | | ??????????????????????????##?#????????????######## | | | | | | | | | | | | | | | | | | | | | | | | | | | | | | | +----------------------------------------------------+ Best States ------------- Heat Dissipation 28 Energy Generation 14 Energy Capacity 250 Matter Stores 300 Matter Capacity 300 Sight Range 16 Terrain Scan Range 20 Terrain Scan Density 10 Base Temperature (-) 100 Evasion (%) 40 Item Schematics ----------------- None Robot Schematics ------------------ None Fabricated ------------ Nothing Alien Tech Used ----------------- None Achievements -------------- None Challenges ------------ None Game ------ Seed TacticalThunderNanovents Manual? 0 Play Time 00:15:14 Cumulative 13.2 hours Start 2020.10.27 @ 18:53:24 End 2020.10.27 @ 19:09:16 Sessions 1 Manual Loads 0 Difficulty Rogue Special Mode None Game No. 17 Rogue 17 Adventurer 0 Explorer 0 Win Type - Total 0 Types 0/0/0/0/0/0/0/0/0 Lore% 19 Gallery% 19 Achievement% 17 Wizard Run 0 Options --------- ASCII 0 Keyboard 0 Movement Mouse Keybinds 0 Fullscreen 2 Font 24/Smallcaps Map View 76x50 Tactical HUD 1 Map Filters NONE Filters NONE Steam X RUN: 31d71072-c855-484c-aa91-574dcde7d17b